Cogmind - Beta 10.1 @@@ ROGUE MODE // 2021.07.04 @ 19:20:03 Player: W-ALTER Result: Destroyed by G-34 Mercenary with Small Laser Performance ------------- Evolutions (1) 500 Regions Visited (3) 600 Robots Destroyed (9) 45 Value Destroyed (88) 88 Prototype IDs (2) 40 Alien Tech Used (0) 0 Bonus (0) 0 TOTAL SCORE: 1273 Bonus ------- None Cogmind --------- Core Integrity 0/400 Matter 107/300 Energy 72/100 System Corruption 0% Temperature Cool (6) Movement Core (50) Location -9/Materials Parts ------- > --- POWER (1) -------- (None) > --- PROPULSION (2) --- (None) > --- UTILITY (4) ------ System Shield > --- WEAPON (2) ------- Improved Datajack > --- INVENTORY (4) ---- Heavy Particle Cannon Heavy Particle Cannon Peak State ------------ > --- POWER ------------ (None) > --- PROPULSION ------- (None) > --- UTILITY ---------- System Shield > --- WEAPON ----------- Heavy Particle Cannon Heavy Particle Cannon > --- INVENTORY -------- Improved Datajack [Rating: 9] Favorites ----------- Power Light Ion Engine Engine Light Ion Engine Propulsion Compact Wheel Wheel Compact Wheel Utility Small Storage Unit Storage Small Storage Unit Hackware System Shield Protection Core Shielding Weapon Assault Rifle Energy Gun Medium Laser Energy Cannon Heavy Particle Cannon Ballistic Gun Assault Rifle Launcher Grenade Launcher Special Weapon Mining Laser Special Melee Weapon Improved Datajack Build | -11 -10 -10 -9 ------- Run | Scr Mat Min Mat Slots Evolved 2 | . . . 2 Power . | . . . . Propulsion . | . . . . Utility 2 | . . . 2 Weapon . | . . . . Parts Attached 13 | 6 2 1 4 Power 1 | 1 . . . Engine 1 | 1 . . . Core . | . . . . Reactor . | . . . . Propulsion 2 | 2 . . . Treads . | . . . . Leg . | . . . . Wheel 2 | 2 . . . Hover . | . . . . Flight . | . . . . Utility 3 | 1 1 . 1 Device . | . . . . Storage 1 | 1 . . . Processor . | . . . . Hackware 1 | . . . 1 Protection 1 | . 1 . . Artifact . | . . . . Weapon 7 | 2 1 1 3 Energy Gun 1 | 1 . . . Energy Cannon 2 | . . . 2 Ballistic Gun 1 | 1 . . . Ballistic Cannon . | . . . . Launcher 1 | . 1 . . Special Weapon 1 | . . 1 . Impact Weapon . | . . . . Slashing Weapon . | . . . . Piercing Weapon . | . . . . Special Melee Weapon 1 | . . . 1 Unidentified Prototypes . | . . . . Parts Lost 8 | . 2 2 4 Power 1 | . 1 . . Propulsion 2 | . . 1 1 Utility 2 | . . . 2 Weapon 3 | . 1 1 1 Highest Loss Streak 2 | . 2 2 2 Average Slot Usage (%) 48 | . 79 71 23 Engine 2 | . 8 . . Wheel 14 | . 28 21 4 Storage 11 | . 14 14 8 Protection 6 | . 3 14 6 Ballistic Gun 5 | . 14 7 . Launcher 2 | . 8 . . Special Weapon 2 | . . 14 . Naked Turns 16 | . . . 16 Heaviest Build 12 | 11 12 8 12 Greatest Support 32 | 32 32 32 16 Greatest Overweight (x) 3 | 1 . . 3 Average Overweight (x) . | . . . . Largest Inventory Capacity 6 | 6 6 6 6 Average Capacity 5 | 5 6 6 5 Most Carried 5 | 5 1 . 4 Average Carried . | 1 . . . Final Capacity 6 | 6 6 6 4 Final Carried 2 | . 1 . 2 Class Distribution -------------------- 100% | Mutant Dominant Class ---------------- Mutant | -10/Materials Mutant | -10/Mines Mutant | -9/Materials Resources | -11 -10 -10 -9 ----------- Run | Scr Mat Min Mat Matter Collected 193 | 174 . 19 . Remotely . | . . . . Salvage Created 86 | . 86 . . Parts 11 | . 11 . . Haulers Intercepted . | . . . . Recyclers Shooed . | . . . . Parts Field Recycled . | . . . . Retrieved Matter . | . . . . Parts Self-Destructed . | . . . . Prevented . | . . . . Kills | -11 -10 -10 -9 ------- Run | Scr Mat Min Mat Combat Hostiles Destroyed 6 | . 6 . . Guns 1 | . 1 . . AOE 5 | . 5 . . Classes Destroyed 4 | . 4 . . Builder 1 | . 1 . . Tunneler 1 | . 1 . . Recycler 1 | . 1 . . Swarmer 6 | . 6 . . Best Kill Streak 9 | . 9 . . Combat Bots Only 6 | . 6 . . Max Kills in Single Turn 2 | . 2 . . Gunslinging . | . . . . Exploded 2 | . 2 . . Melee . | . . . . Uniques/NPCs Destroyed . | . . . . Combat | -11 -10 -10 -9 -------- Run | Scr Mat Min Mat Damage Taken 1046 | . 244 166 636 Core 434 | . 32 . 402 Absorbed by Shields . | . . . . Core Remaining (%) 93 | 100 . 87 . Volleys Fired 14 | . 10 4 . Largest 2 | . 2 1 . Hottest 100 | . 50 100 . Shots Fired 21 | . 17 4 . Gun 10 | . 10 . . Cannon . | . . . . Launcher 7 | . 7 . . Special 4 | . . 4 . Kinetic 10 | . 10 . . Thermal 4 | . . 4 . Explosive 7 | . 7 . . Electromagnetic . | . . . . Robot Hit Streak 3 | . 3 . . Robot Miss Streak 2 | . 2 1 . Penetration Max . | . . . . Secondary Targets . | . . . . Shots Hit Robots 13 | . 9 . 4 Core Hits 13 | . 12 . 1 Critical Hits . | . . . . Critical Kills . | . . . . Critical Parts Destroyed . | . . . . Melee Attacks 4 | . . . 4 Impact . | . . . . Slashing . | . . . . Piercing . | . . . . Sneak Attacks 1 | . . . 1 Combat Hostiles . | . . . . Follow-up Attacks . | . . . . Damage Inflicted 496 | . 494 . 2 Guns 42 | . 42 . . Cannons . | . . . . Explosions 452 | . 452 . . Melee . | . . . . Ramming 2 | . . . 2 Kinetic 42 | . 42 . . Thermal . | . . . . Explosive 452 | . 452 . . Electromagnetic . | . . . . Impact . | . . . . Slashing . | . . . . Piercing . | . . . . Highest Corruption 4 | . . 4 . Average Corruption 4 | . . 4 . Corruption Purged . | . . . . Effects 1 | . . 1 . Data Loss (minor) 1 | . . 1 . Overload Shots . | . . . . Overflow Damage 45 | . 45 . . Projectiles . | . . . . Explosions 45 | . 45 . . Melee . | . . . . Knockbacks . | . . . . Impact . | . . . . Kinetic . | . . . . Secondary . | . . . . Self-Inflicted Damage 28 | . 27 . 1 Shots 1 | . 1 . . Rammed 1 | . . . 1 Targets Rammed 1 | . . . 1 Kicked . | . . . . Crushed . | . . . . Highest Temperature . | . . . . Average Temperature . | . . . . Received Heat Transfer 291 | . 48 . 243 Siege Activations . | . . . . Robots Corrupted . | . . . . Combat Hostiles . | . . . . Parts Fried . | . . . . Impact Corruptions . | . . . . Robots Melted . | . . . . Combat Hostiles . | . . . . Parts Melted . | . . . . Heat Transferred . | . . . . Parts Sabotaged . | . . . . Parts Stolen . | . . . . Parts Stripped . | . . . . Power Chain Reactions . | . . . . Missiles Intercepted . | . . . . Alert | -11 -10 -10 -9 ------- Run | Scr Mat Min Mat Peak Influence 160 | . 160 58 30 Initial 58 | . . 58 14 Average 38 | . 65 47 25 Maximum Alert Level . | . . . . Low Security (%) 100 | 100 100 100 100 Level 1 . | . . . . Level 2 . | . . . . Level 3 . | . . . . Level 4 . | . . . . Level 5 . | . . . . High Security . | . . . . Max Security . | . . . . Squads Dispatched 4 | . 1 . 3 Investigation 3 | . 1 . 2 Extermination . | . . . . Reinforcement 1 | . . . 1 Assault . | . . . . Garrison . | . . . . Intercept . | . . . . Construction Impeded . | . . . . Haulers Reinforced . | . . . . Stealth | -11 -10 -10 -9 --------- Run | Scr Mat Min Mat Distress Signals 3 | . 1 . 2 Communications Jammed . | . . . . Distress Signals . | . . . . Times Spotted 24 | . 9 . 15 Peak Tracking Total 16 | . 4 . 16 Tactical Retreats . | . . . . Traps | -11 -10 -10 -9 ------- Run | Scr Mat Min Mat Traps Triggered 4 | . 1 . 3 Indirectly . | . . . . Trap Hack Attempts . | . . . . Triggered . | . . . . Disarmed . | . . . . Reprogrammed . | . . . . Reused . | . . . . Traps Extracted . | . . . . Installed . | . . . . Triggered . | . . . . Machines | -11 -10 -10 -9 ---------- Run | Scr Mat Min Mat Machines Disabled 1 | . 1 . . Max in Single Turn 1 | . 1 . . Machines Sabotaged . | . . . . Garrisons Compromised . | . . . . Overloaded Fab Kills . | . . . . Fab Network Shutdowns . | . . . . Hacking | -11 -10 -10 -9 --------- Run | Scr Mat Min Mat Machines Accessed 2 | . . . 2 Terminals 2 | . . . 2 Fabricators . | . . . . Repair Stations . | . . . . Recycling Units . | . . . . Scanalyzers . | . . . . Garrison Access . | . . . . Total Hacks 9 | . . . 9 Successful 8 | . . . 8 Failed 1 | . . . 1 Catastrophic . | . . . . Database Lockouts . | . . . . Manual . | . . . . Terminals 9 | . . . 9 Fabricators . | . . . . Repair Stations . | . . . . Recycling Units . | . . . . Scanalyzers . | . . . . Garrison Access . | . . . . Terminal Hacks 8 | . . . 8 Record 3 | . . . 3 Prototype ID Bank 1 | . . . 1 Emergency Access Points 1 | . . . 1 Terminal Index 1 | . . . 1 Locate Traps 1 | . . . 1 Recall Investigation 1 | . . . 1 Fabricator Hacks . | . . . . Repair Station Hacks . | . . . . Recycling Unit Hacks . | . . . . Scanalyzer . | . . . . Garrison Access Hacks . | . . . . Unauthorized Hacks . | . . . . Terminals . | . . . . Fabricators . | . . . . Repair Stations . | . . . . Recycling Units . | . . . . Scanalyzers . | . . . . Garrison Access . | . . . . Data Cores Recovered . | . . . . Used . | . . . . Hacking Detections 2 | . . . 2 Full Trace Events 1 | . . . 1 Feedback Events . | . . . . Feedback Blocked . | . . . . Robot Schematics Acquired . | . . . . Robots Built . | . . . . Matter . | . . . . Time . | . . . . Total Robot Build Rating . | . . . . Part Schematics Acquired . | . . . . Parts Built . | . . . . Matter . | . . . . Time . | . . . . Total Part Build Rating . | . . . . Parts Repaired . | . . . . Time . | . . . . Parts Recycled . | . . . . Recycled Matter . | . . . . Retrieved Matter . | . . . . Retrieved Components . | . . . . Parts Scanalyzed . | . . . . Part Schematics Acquired . | . . . . Parts Damaged . | . . . . Bothacking | -11 -10 -10 -9 ------------ Run | Scr Mat Min Mat Used RIF Installer . | . . . . Robots Hacked 2 | . . . 2 Non-combat 1 | . . . 1 Combat 1 | . . . 1 Robot Hacks Applied 3 | . . . 3 parse_system 3 | . . . 3 Relay Couplers Released . | . . . . Robots Rewired . | . . . . Allies Hacked . | . . . . Hacks Repelled . | . . . . Allies | -11 -10 -10 -9 -------- Run | Scr Mat Min Mat Total Allies . | . . . . Largest Group . | . . . . Highest-Rated Group . | . . . . Highest-Rated Ally . | . . . . Total Orders . | . . . . Ally Attacks . | . . . . Total Damage . | . . . . Kills . | . . . . Allies Corrupted . | . . . . Allies Melted . | . . . . Intel | -11 -10 -10 -9 ------- Run | Scr Mat Min Mat Robot Analysis Total . | . . . . Derelict Logs Recovered . | . . . . Drone Launches . | . . . . Drone Recoveries . | . . . . Exploration | -11 -10 -10 -9 ------------- Run | Scr Mat Min Mat Turns Passed 434 | 35 131 54 214 Spaces Moved 367 | 28 99 38 202 Core 132 | 11 . . 121 Treads . | . . . . Legs . | . . . . Wheels 235 | 17 99 38 81 Hover . | . . . . Flight . | . . . . Fastest Speed 50 | 50 100 100 50 Average Speed 91 | 85 100 100 86 Slowest Speed 200 | 100 100 100 200 Overloaded Moves . | . . . . Propulsion Burnouts . | . . . . Robots Hopped . | . . . . Cave-ins Triggered 1 | . . 1 . Exploration Rate (%) 16 | 4 26 12 22 Regions Visited 3 Branch Regions 1 Pre-discovered Areas . | . . . . Known Exits Taken . | . . . . Unknown Exits Taken 3 | 1 1 1 . Scrap Searched 1 | . . 1 . Spaces Dug 3 | . . 3 . Terrain Destroyed 21 | . 17 4 . Melee . | . . . . Projectile 4 | . . 4 . AOE 17 | . 17 . . Terrain Rammed . | . . . . Walls Destroyed . | . . . . Machines Disabled . | . . . . Actions | -11 -10 -10 -9 --------- Run | Scr Mat Min Mat Total 435 | 38 114 42 241 Wait 24 | . . . 24 Move 364 | 27 98 37 202 Hop . | . . . . Pick Up 12 | 5 3 . 4 Fast Attach 1 | 1 . . . Attach 12 | 5 2 1 4 Detach 2 | . . . 2 Swap . | . . . . Drop 1 | . 1 . . Fire 14 | . 10 4 . Melee 4 | . . . 4 Ram 1 | . . . 1 Kick . | . . . . Crush . | . . . . Escape Stasis . | . . . . Rewire . | . . . . Trap . | . . . . Miscellaneous . | . . . . Route ------- -11/Scrapyard -10/Materials -10/Mines -9/Materials History --------- Turn | Location | Event 21 | -11/Scrapyard | Discovered new exit (range 15) 36 | -11/Scrapyard | Entered Materials 155 | -10/Materials | Discovered new exit (range 5) 167 | -10/Materials | Entered Mines 194 | -10/Mines | Crushed by falling debris 212 | -10/Mines | Discovered new exit (range 6) 221 | -10/Mines | Met a Derelict bent on vengeance 221 | -10/Mines | Entered Materials 221 | -9/Materials | Evolved 2 slots: Utility x2 302 | -9/Materials | Build established: Mutant 377 | -9/Materials | Core integrity fell below 50% 415 | -9/Materials | Core integrity fell below 20% 435 | -9/Materials | Destroyed by G-34 Mercenary with Small Laser Last Messages --------------- 00397_ Acquired Hvy. Particle Cannon. 00400_ Acquired Imp. Datajack. 00410_ W-16 Scout sends out distress signal. 00412_ Jacked W-16 Scout... >>parse_system Reading system data... 00415_ O-16 Technician uses terminal to summon reinforcements. 00415_ ALERT: Hostiles spotted, dispatching reinforcements to Terminal M009. 00415_ O-16 Technician locks terminal. 00423_ Sneak attack on K-01 Serf. 00423_ Jacked K-01 Serf... >>find_chute No applicable chute records found in memory. 00423_ K-01 Serf cleans the Fusion Modulator. 00433_ Jacked G-34 Mercenary... >>parse_system Reading system data... 00435_ Jacked G-34 Mercenary... >>parse_system Reading system data... Map ----- +----------------------------------------------------+ | ???????????????????????????????????????????# | | ???????????????????????????????????????????# | | ???????????????????????????????????????????# | | ???????????????????????????????????????????# | | ???????????????????????????????????????????# | | ???????????????????????????????????????????# | | ?????????????????? ??????????????????????# | | ?????????????????# ??????????????????????# | | ?????????????????# ??????????????????????####### | | ?????????????????# ????????????????????????????? | | ?????????????????# ????????????????????????????? | | ????????????????## ##??????????????????????????? | | ??????????####### #??????????????????????????? | | ??????????? #??????????????????????????? | | ???????????? #??########????????????????? | | ?????????????? #??#//]]!!#????????????????? | | ????????????????# #??#/ !#????????????????? | | ?????????????????## ##?# #????????????????? | | ?????????????????# ### ################?? | | ?????????????????# # ! ### | | ?????????????????# T # / | | ?????????????????# # """ ### | | ?????????????????# ############## + R" #?? | | ????????????????####/#########??????# # """ #?? | | ????????????????# gg gg #??????# # #?? | | ????????????????# """ """@ #??????# ########?? | | ????????????????# """ """ #??????# ????????? | | ????????????????# """ """ #??????# ???????? | | ????????????????# gY #??????# ??????? | | ????????????????##############??????########?????? | | ?????????????????????????????????????????????????? | | ?????????????????????????????????????????????????? | | ?????????????????????????????????????????????????? | | ?????????????????????????????????????????????????? | | ?????????????????????????????????????????????????? | | ?????????????????????????????????????????????????? | | ?????????????????????????????????????????????????? | | ?????????????????????????????????????????????????? | | ?????????????????????????????????????????????????? | | ?????????????????????????????????????????????????? | | ?????????????????????????????????????????????????? | | ?????????????????????????????????????????????????? | | ?????????????????????????????????????????????????? | | ?????????????????????????????????????????????????? | | ?????????????????????????????????????????????????? | | ?????????????????????????????????????????????????? | | ?????????????????????????????????????????????????? | | ?????????????????????????????????????????????????? | | ?????????????????????????????????????????????????? | | ?????????????????????????????????????????????????? | +----------------------------------------------------+ Best States ------------- Heat Dissipation 28 Energy Generation 10 Energy Capacity 125 Matter Stores 214 Matter Capacity 300 Sight Range 16 Terrain Scan Density 10 Core Shielding 20 Evasion (%) 50 Defensive Hacking 10 Item Schematics ----------------- None Robot Schematics ------------------ None Fabricated ------------ Nothing Alien Tech Used ----------------- None Achievements -------------- None Challenges ------------ None Game ------ Seed CombatThermalCapacitor Manual? 0 Play Time 00:09:19 Cumulative 5.5 hours Start 2021.07.04 @ 19:12:49 End 2021.07.04 @ 19:20:03 Sessions 1 Manual Loads 0 Difficulty Rogue Special Mode None Game No. 12 Rogue 12 Adventurer 0 Explorer 0 Win Type - Total 0 Types 0/0/0/0/0/0/0/0/0 Lore% 18 Gallery% 11 Achievement% 14 Wizard Run 0 Options --------- ASCII 0 Keyboard 0 Movement Mouse Keybinds 0 Fullscreen 1 Font 12/Smallcaps Map View 83x54 Tactical HUD 1 Map Filters NONE Filters NONE Steam X RUN: dc31f2ac-ce4c-4fb3-a120-e714870edc91